Cogmind - Beta 9.6 @@@ ROGUE MODE // 2020.04.21 @ 06:19:37 Player: dsummers Result: Self-destructed Performance ------------- Evolutions (2) 1000 Regions Visited (4) 800 Robots Destroyed (45) 225 Value Destroyed (1000) 1000 Prototype IDs (0) 0 Alien Tech Used (0) 0 Bonus (113) 113 TOTAL SCORE: 3138 Bonus ------- High Alert Combat Kills 2 Follower Combat Kills 124 Friendly Fire -13 Cogmind --------- Core Integrity 76/550 Matter 186/300 Energy 50/100 System Corruption 0% Temperature Cool (0) Movement Flying (120) Ox1 Location -8/Materials Parts ------- > --- POWER (2) -------- (None) > --- PROPULSION (3) --- Cesium-ion Thruster > --- UTILITY (4) ------ Small Storage Unit Signal Interpreter Targeting Computer Improved Propulsion Shielding > --- WEAPON (2) ------- Rocket Launcher > --- INVENTORY (6) ---- Weight Redist. System Propulsion Shielding Improved Field Recycling Unit (18) Signal Generator Peak State ------------ > --- POWER ------------ Improved Ion Engine Improved Ion Engine > --- PROPULSION ------- Xenon Bombardment Thruster Xenon Bombardment Thruster Xenon Bombardment Thruster > --- UTILITY ---------- Small Storage Unit Signal Interpreter Targeting Computer Improved Field Recycling Unit > --- WEAPON ----------- Shotgun > --- INVENTORY -------- Xenon Bombardment Thruster Weight Redist. System Propulsion Shielding Rocket Launcher Signal Generator [Rating: 26] Favorites ----------- Power Light Ion Engine Engine Light Ion Engine Power Core Light Nuclear Core Propulsion Flight Unit Treads Light Treads Wheel Armored Wheel Flight Unit Flight Unit Utility Small Storage Unit Device Sensor Array Storage Small Storage Unit Processor Targeting Computer Protection Improved Propulsion Shielding Weapon Light Assault Rifle Energy Gun Small Laser Ballistic Gun Light Assault Rifle Launcher Rocket Launcher Build | -11 -10 -10 -9 -8 ------- Run | Scr Mat Min Mat Mat Slots Evolved 4 | . . . 2 2 Power 1 | . . . . 1 Propulsion 1 | . . . 1 . Utility 2 | . . . 1 1 Weapon . | . . . . . Parts Attached 79 | 6 . 7 50 16 Power 9 | 1 . 2 4 2 Engine 7 | 1 . 2 2 2 Core 2 | . . . 2 . Reactor . | . . . . . Propulsion 31 | 2 . 2 21 6 Treads 4 | . . . 4 . Leg . | . . . . . Wheel 6 | 2 . . 4 . Hover . | . . . . . Flight 21 | . . 2 13 6 Utility 14 | 1 . 1 8 4 Device 6 | . . . 4 2 Storage 3 | 1 . . 2 . Processor 3 | . . 1 2 . Hackware . | . . . . . Protection 2 | . . . . 2 Artifact . | . . . . . Weapon 25 | 2 . 2 17 4 Energy Gun 2 | 1 . . 1 . Energy Cannon . | . . . . . Ballistic Gun 18 | 1 . 2 14 1 Ballistic Cannon . | . . . . . Launcher 5 | . . . 2 3 Special Weapon . | . . . . . Impact Weapon . | . . . . . Slashing Weapon . | . . . . . Piercing Weapon . | . . . . . Special Melee Weapon . | . . . . . Unidentified Prototypes . | . . . . . Parts Lost 17 | . . . 9 8 Power 3 | . . . 1 2 Propulsion 10 | . . . 5 5 Utility . | . . . . . Weapon 4 | . . . 3 1 Highest Loss Streak 4 | . . . 4 4 Average Slot Usage (%) 84 | . 85 80 89 64 Engine 8 | . 14 14 7 4 Core 2 | . . . 3 . Treads 1 | . . . 2 . Wheel 6 | . 28 7 6 . Flight 21 | . . 20 22 22 Device 3 | . . . 5 . Storage 11 | . 14 14 11 9 Processor 12 | . . 6 13 18 Energy Gun 2 | . 14 3 2 . Ballistic Gun 12 | . 14 14 14 4 Naked Turns . | . . . . . Heaviest Build 33 | 10 10 10 19 33 Greatest Support 40 | 26 26 26 40 21 Greatest Overweight (x) 4 | . . 2 4 1 Average Overweight (x) . | . . . . . Largest Inventory Capacity 6 | 6 6 6 6 6 Average Capacity 5 | 5 6 6 6 6 Most Carried 6 | 4 5 6 6 6 Average Carried 5 | 3 4 5 5 5 Final Capacity 6 | 6 6 6 6 6 Final Carried 6 | 4 5 6 6 4 Class Distribution -------------------- 50% | Mutant 49% | Scavenger-Mutant Dominant Class ---------------- Mutant | -10/Materials Scavenger-Mutant | -10/Mines Scavenger-Mutant | -9/Materials Mutant | -8/Materials Resources | -11 -10 -10 -9 -8 ----------- Run | Scr Mat Min Mat Mat Matter Collected 1439 | 216 . 180 825 218 Remotely . | . . . . . Salvage Created 1174 | 25 . 118 928 103 Parts 93 | 1 . 12 70 10 Haulers Intercepted 3 | . . . 3 . Recyclers Shooed 1 | . . . 1 . Parts Field Recycled 3 | . . . . 3 Retrieved Matter 38 | . . . . 38 Parts Self-Destructed . | . . . . . Prevented . | . . . . . Kills | -11 -10 -10 -9 -8 ------- Run | Scr Mat Min Mat Mat Combat Hostiles Destroyed 37 | . . 7 23 7 Guns 27 | . . 7 16 4 AOE 10 | . . . 7 3 Classes Destroyed 7 | 1 . 2 4 . Builder 3 | . . . 3 . Tunneler 1 | 1 . . . . Hauler 3 | . . . 3 . Watcher 1 | . . . 1 . Swarmer 20 | . . 6 8 6 Grunt 8 | . . 1 6 1 Sentry 9 | . . . 9 . Best Kill Streak 6 | 1 . 6 4 3 Combat Bots Only 6 | . . 6 4 3 Max Kills in Single Turn 3 | 1 . 1 2 3 Gunslinging . | . . . . . Exploded 3 | . . . 2 3 Melee . | . . . . . Uniques/NPCs Destroyed . | . . . . . Combat | -11 -10 -10 -9 -8 -------- Run | Scr Mat Min Mat Mat Damage Taken 2713 | . . 237 1377 1099 Core 712 | . . 57 181 474 Absorbed by Shields . | . . . . . Core Remaining (%) 77 | 100 . 77 54 . Volleys Fired 165 | 7 . 21 103 34 Largest 2 | 2 . 2 2 1 Hottest 60 | 60 . 60 56 33 Shots Fired 239 | 14 . 37 154 34 Gun 221 | 14 . 37 141 29 Cannon . | . . . . . Launcher 18 | . . . 13 5 Special . | . . . . . Kinetic 187 | 7 . 21 130 29 Thermal 34 | 7 . 16 11 . Explosive 18 | . . . 13 5 Electromagnetic . | . . . . . Robot Hit Streak 15 | 4 . 5 15 6 Robot Miss Streak 6 | 2 . 3 4 6 Penetration Max . | . . . . . Secondary Targets 2 | . . 1 1 . Max Gunslinging Chain 1 | . . 1 1 . Shots Hit Robots 175 | 9 . 21 117 28 Core Hits 84 | 1 . 9 60 14 Critical Hits 3 | . . . 2 1 Critical Kills 1 | . . . 1 . Critical Parts Destroyed 2 | . . . 1 1 Melee Attacks . | . . . . . Impact . | . . . . . Slashing . | . . . . . Piercing . | . . . . . Sneak Attacks . | . . . . . Combat Hostiles . | . . . . . Follow-up Attacks . | . . . . . Damage Inflicted 2812 | 133 . 153 1747 779 Guns 1703 | 133 . 153 1073 344 Cannons . | . . . . . Explosions 1109 | . . . 674 435 Melee . | . . . . . Ramming . | . . . . . Kinetic 1414 | 76 . 51 943 344 Thermal 352 | 57 . 102 130 63 Explosive 1046 | . . . 674 372 Electromagnetic . | . . . . . Impact . | . . . . . Slashing . | . . . . . Piercing . | . . . . . Highest Corruption 1 | . . . 1 . Average Corruption 1 | . . . 1 . Corruption Purged . | . . . . . Effects 7 | . . . 7 . Energy Discharges 3 | . . . 3 . Data Loss (minor) 1 | . . . 1 . Targeting Errors 3 | . . . 3 . Overload Shots . | . . . . . Overflow Damage 73 | . . . . 73 Projectiles . | . . . . . Explosions 73 | . . . . 73 Melee . | . . . . . Knockbacks . | . . . . . Impact . | . . . . . Kinetic . | . . . . . Secondary . | . . . . . Self-Inflicted Damage 46 | . . . 21 25 Shots 3 | . . . 1 2 Rammed . | . . . . . Targets Rammed . | . . . . . Kicked . | . . . . . Crushed . | . . . . . Highest Temperature 40 | . . 40 36 9 Average Temperature 8 | . . 13 8 3 Received Heat Transfer 816 | . . 18 483 315 Siege Activations . | . . . . . Robots Corrupted . | . . . . . Combat Hostiles . | . . . . . Parts Fried . | . . . . . Impact Corruptions . | . . . . . Robots Melted . | . . . . . Combat Hostiles . | . . . . . Parts Melted 1 | . . 1 . . Heat Transferred 733 | 125 . 225 333 50 Parts Sabotaged . | . . . . . Parts Stolen . | . . . . . Parts Stripped . | . . . . . Power Chain Reactions . | . . . . . Missiles Intercepted . | . . . . . Alert | -11 -10 -10 -9 -8 ------- Run | Scr Mat Min Mat Mat Peak Influence 436 | 5 3 228 402 436 Average Influence 173 | 1 3 125 201 226 Maximum Alert Level 2 | . . 1 2 2 Low Security (%) 61 | 100 100 84 51 47 Level 1 35 | . . 15 44 48 Level 2 2 | . . . 4 4 Level 3 . | . . . . . Level 4 . | . . . . . Level 5 . | . . . . . High Security . | . . . . . Max Security . | . . . . . Squads Dispatched 10 | . 1 . 5 4 Investigation 1 | . . . 1 . Extermination . | . . . . . Reinforcement 9 | . 1 . 4 4 Assault . | . . . . . Garrison . | . . . . . Intercept . | . . . . . Construction Impeded 2 | . . . . 2 Haulers Reinforced . | . . . . . Stealth | -11 -10 -10 -9 -8 --------- Run | Scr Mat Min Mat Mat Distress Signals 7 | . . . 4 3 Communications Jammed . | . . . . . Distress Signals . | . . . . . Times Spotted 89 | . 1 9 45 34 Peak Tracking Total 20 | . 1 3 6 20 Tactical Retreats 8 | . . 1 4 3 Traps | -11 -10 -10 -9 -8 ------- Run | Scr Mat Min Mat Mat Traps Triggered 1 | . . . 1 . Indirectly . | . . . . . Trap Hack Attempts . | . . . . . Triggered . | . . . . . Disarmed . | . . . . . Reprogrammed . | . . . . . Reused 1 | . . . 1 . Traps Extracted . | . . . . . Installed 1 | . . . 1 . Triggered 1 | . . . 1 . Machines | -11 -10 -10 -9 -8 ---------- Run | Scr Mat Min Mat Mat Machines Disabled 4 | . . . 1 3 Max in Single Turn 2 | . . . 1 2 Garrison Access 1 | . . . . 1 Machines Sabotaged . | . . . . . Garrisons Compromised . | . . . . . Overloaded Fab Kills . | . . . . . Fab Network Shutdowns . | . . . . . Hacking | -11 -10 -10 -9 -8 --------- Run | Scr Mat Min Mat Mat Machines Accessed 10 | . . . 8 2 Terminals 6 | . . . 5 1 Fabricators . | . . . . . Repair Stations 1 | . . . 1 . Recycling Units 1 | . . . 1 . Scanalyzers 1 | . . . 1 . Garrison Access 1 | . . . . 1 Total Hacks 35 | . . . 30 5 Successful 23 | . . . 22 1 Failed 12 | . . . 8 4 Catastrophic 1 | . . . 1 . Database Lockouts . | . . . . . Manual 21 | . . . 18 3 Terminals 23 | . . . 20 3 Fabricators . | . . . . . Repair Stations 5 | . . . 5 . Recycling Units 3 | . . . 3 . Scanalyzers 2 | . . . 2 . Garrison Access 2 | . . . . 2 Terminal Hacks 2 | . . . 2 . Unreport Threat 1 | . . . 1 . Recall Reinforcements 1 | . . . 1 . Fabricator Hacks . | . . . . . Repair Station Hacks 5 | . . . 5 . Scan Component 2 | . . . 2 . Repair 2 | . . . 2 . Refit 1 | . . . 1 . Recycling Unit Hacks 2 | . . . 2 . Retrieve Matter 1 | . . . 1 . Retrieve Components 1 | . . . 1 . Scanalyzer 2 | . . . 2 . Insert Component 1 | . . . 1 . Analyze 1 | . . . 1 . Garrison Access Hacks 1 | . . . . 1 Seal Access 1 | . . . . 1 Unauthorized Hacks 11 | . . . 11 . Terminals 10 | . . . 10 . Track 2 | . . . 2 . Assimilate 2 | . . . 2 . Botnet 5 | . . . 5 . Operators 1 | . . . 1 . Fabricators . | . . . . . Repair Stations . | . . . . . Recycling Units 1 | . . . 1 . Reject 1 | . . . 1 . Scanalyzers . | . . . . . Garrison Access . | . . . . . Data Cores Recovered . | . . . . . Used . | . . . . . Hacking Detections 8 | . . . 7 1 Full Trace Events 2 | . . . 1 1 Feedback Events . | . . . . . Feedback Blocked . | . . . . . Robot Schematics Acquired . | . . . . . Robots Built . | . . . . . Matter . | . . . . . Time . | . . . . . Total Robot Build Rating . | . . . . . Part Schematics Acquired 1 | . . . 1 . Parts Built . | . . . . . Matter . | . . . . . Time . | . . . . . Total Part Build Rating . | . . . . . Parts Repaired 2 | . . . 2 . Time 58 | . . . 58 . Parts Recycled . | . . . . . Recycled Matter . | . . . . . Retrieved Matter 52 | . . . 52 . Retrieved Components 9 | . . . 9 . Parts Scanalyzed 1 | . . . 1 . Part Schematics Acquired 1 | . . . 1 . Parts Damaged . | . . . . . Bothacking | -11 -10 -10 -9 -8 ------------ Run | Scr Mat Min Mat Mat Used RIF Installer . | . . . . . Robots Hacked . | . . . . . Non-combat . | . . . . . Combat . | . . . . . Robot Hacks Applied . | . . . . . Relay Couplers Released . | . . . . . Robots Rewired . | . . . . . Allies Hacked . | . . . . . Hacks Repelled . | . . . . . Allies | -11 -10 -10 -9 -8 -------- Run | Scr Mat Min Mat Mat Total Allies 5 | . . 3 2 . Largest Group 3 | . . 3 3 2 Highest-Rated Group 40 | . . 40 40 20 Highest-Rated Ally 16 | . . 16 16 10 Total Orders 13 | . . . 12 1 GOTO 8 | . . . 7 1 FOLLOW 5 | . . . 5 . Ally Attacks 25 | . . 8 17 . Total Damage 291 | . . 124 167 . Kills 6 | . . 1 5 . Allies Corrupted . | . . . . . Allies Melted . | . . . . . Intel | -11 -10 -10 -9 -8 ------- Run | Scr Mat Min Mat Mat Robot Analysis Total . | . . . . . Derelict Logs Recovered 2 | . . 2 . . Drone Launches . | . . . . . Drone Recoveries . | . . . . . Exploration | -11 -10 -10 -9 -8 ------------- Run | Scr Mat Min Mat Mat Turns Passed 2171 | 130 48 432 1305 256 Spaces Moved 2211 | 82 53 596 1174 306 Core 4 | 1 . . . 3 Treads 63 | . . . 63 . Legs . | . . . . . Wheels 477 | 81 53 53 290 . Hover . | . . . . . Flight 1667 | . . 543 821 303 Fastest Speed 34 | 50 90 37 34 34 Average Speed 52 | 89 90 42 55 40 Slowest Speed 380 | 100 90 200 380 120 Overloaded Moves . | . . . . . Propulsion Burnouts . | . . . . . Robots Hopped 41 | . . 9 18 14 Cave-ins Triggered . | . . . . . Exploration Rate (%) 44 | 4 15 89 81 34 Regions Visited 4 Branch Regions 1 Pre-discovered Areas . | . . . . . Known Exits Taken 1 | . . . 1 . Unknown Exits Taken 3 | 1 1 1 . . Scrap Searched 1 | . . 1 . . Spaces Dug . | . . . . . Terrain Destroyed 89 | . . . 49 40 Melee . | . . . . . Projectile . | . . . . . AOE 89 | . . . 49 40 Actions | -11 -10 -10 -9 -8 --------- Run | Scr Mat Min Mat Mat Total 2987 | 121 53 729 1691 393 Wait 484 | 23 . 105 317 39 Move 2136 | 81 52 577 1141 285 Hop 30 | . . 9 14 7 Pick Up 25 | 4 1 2 16 2 Fast Attach 32 | 6 . 3 21 2 Attach 18 | . . . 8 10 Detach 13 | . . . 7 6 Swap 29 | . . 4 21 4 Drop 54 | . . 8 42 4 Fire 165 | 7 . 21 103 34 Melee . | . . . . . Ram . | . . . . . Kick . | . . . . . Crush . | . . . . . Escape Stasis . | . . . . . Rewire . | . . . . . Trap 1 | . . . 1 . Miscellaneous . | . . . . . Route ------- -11/Scrapyard -10/Materials -10/Mines (discovered 2 exits: *Mat x2) -9/Materials (discovered 4 exits: *Mat x3 / [*Min]) -8/Materials (discovered 1 exit: *Sto) History --------- Turn | Location | Event 19 | -11/Scrapyard | Discovered new exit (range 15) 131 | -11/Scrapyard | Entered Materials 154 | -10/Materials | Discovered new exit (range 5) 179 | -10/Materials | Entered Mines 316 | -10/Mines | Learned Materials terminal intel 327 | -10/Mines | Assisted by bots powering up and referring to "LRC-V3" 375 | -10/Mines | Met a Derelict testing a Signal Generator 379 | -10/Mines | Found Signal Generator 468 | -10/Mines | Discovered new exit (range 5) 546 | -10/Mines | Build established: Scavenger-Mutant 563 | -10/Mines | Discovered new exit (range 15) 576 | -10/Mines | Found a hidden stash of uninstalled traps 611 | -10/Mines | Entered Materials 611 | -9/Materials | Accompanied by 3 allies 611 | -9/Materials | Evolved 2 slots: Propulsion x1, Utility x1 612 | -9/Materials | Loaded intel: 12 terminal locations 1060 | -9/Materials | Discovered new exit (range 13) 1102 | -9/Materials | Discovered new exit (range 16) 1259 | -9/Materials | Lost 4 parts (1p1n2w) 1598 | -9/Materials | Discovered new exit (range 7) 1630 | -9/Materials | Build established: Mutant 1757 | -9/Materials | Discovered new exit (range 15) 1815 | -9/Materials | Repaired Flight Unit 1848 | -9/Materials | Repaired Rocket Launcher 1855 | -9/Materials | Identified exit to Materials 1916 | -9/Materials | Entered another Materials area 1916 | -8/Materials | Accompanied by 2 allies 1916 | -8/Materials | Evolved 2 slots: Power x1, Utility x1 1917 | -8/Materials | Identified exit to Storage 2068 | -8/Materials | Core integrity fell below 50% 2093 | -8/Materials | Lost 4 parts (3n1w) 2154 | -8/Materials | Core integrity fell below 20% 2172 | -8/Materials | Self-destructed Last Messages --------------- 02138_ ALERT: Construction progress impeded, dispatching reinforcements to local area. 02142_ Connecting with Terminal... 02146_ K-01 Serf collects debris. 02147_ Acquired 39 matter. 02148_ Xenon Bombardment Thruster destroyed. 02151_ K-01 Serf collects debris. 02157_ W-25 Informer sends out distress signal. 02158_ K-01 Serf collects debris. [Achievement: Hunted] 02159_ Acquired 80 matter. 02161_ S-10 Pest destroyed. 02163_ K-01 Serf cleans the Repair Station. 02165_ K-01 Serf collects debris. 02167_ K-01 Serf cleans the Repair Station. 02169_ K-01 Serf collects debris. 02170_ The unstable cave ceiling collapses. 02170_ Flight Unit crushed. 02170_ K-01 Serf collects debris. [Achievement: Achiever] Map ----- +----------------------------------------------------+ | ??????????????????????????????????????????????? | | ??????????????????????????????????????????????? | | ??????????????????????????????????????????????? | | ??????????????????????????????????????????????? | | ??????????????????????????????????????????????? | | ??????????????????????????????????????????????? | | ??????????????????????????????????????????????? | | ??????????????????????????????????????????????? | | ??????????????????????????????????????????????? | | ??????????????????????????????????????????????? | | ??????????????????????????????????????????????? | | ??????????????????????????????????????????????? | | ??????????????????????????????????????????????? | | ??????????????????????????????????????????????? | | ??????????????????????????????????????????????? | | ??????????????????????????????????????????????? | | ??????????????????????????????????????????????? | | ????????????????? ??????????????????????????? | | ????????????????# ??????????????????????????? | | ????????????????+ ??????????????????????????? | | ????????????????# ??????????????????????????? | | ????????????????# ########??????????????????? | | ????????????????# #! #??????????????????? | | ????????????????# # #??????????????????? | | ????????????????# g " " #??????????????????? | | ????????????????# # "R"@ #??????????????????? | | ????????????????# # """ #??????????????????? | | ????????????????# # k [#??????????????????? | | ????????????????# # ###??????????????????? | | ??????# ????????# #??????????????????? | | ??????# ????????# =%=! #??????????????????? | | ??????# ????????+ %! #??????????????????? | | ####### ????????# k#=! #??????????????????? | | ????????# g [ #??????????????????? | | ????????# # [#??????????????????? | | #########g # # ####??????????????????? | | #####?????????????????????? | | ####### #?????????????????????????? | | #?????# #?????????????????????????? | | ####### #?????# #?????????????????????????? | | ??????# #?????# #?????????????????????????? | | ??????# #?????# #?????????????????????????? | | ??????# #####?# ###?????????????????????????? | | ??????# # # #???????????????????????????? | | ??????# # ! # ????????????????????????????? | | ??????# # # ????????????????????????????? | | ??????# # # ??????"?????????????????????? | | ??????# # """ # ????? ?????????????????????? | | ??????# # """ # ???##+############??????????? | | ??????# # """ # #### # #??????????? | +----------------------------------------------------+ Best States ------------- Heat Dissipation 31 Energy Generation 19 Energy Capacity 430 Matter Stores 300 Matter Capacity 300 Sight Range 16 Robot Scan Range 10 Terrain Scan Range 16 Terrain Scan Density 10 Additional Mass Support 6 Propulsion Shielding 66 Evasion (%) 63 Targeting Accuracy 5 Recoil Reduction 2 Item Schematics ----------------- Rocket Launcher | -9/Materials | Scanalyzed Robot Schematics ------------------ None Fabricated ------------ Nothing Alien Tech Used ----------------- None Achievements -------------- Achiever Cya! Hunted Challenges ------------ None Game ------ Seed GuidanceGrenadeNanoactuators Manual? 0 Play Time 00:41:30 Cumulative 25.5 hours Start 2020.04.21 @ 05:38:50 End 2020.04.21 @ 06:19:37 Sessions 1 Manual Loads 0 Difficulty Rogue Special Mode None Game No. 12 Rogue 12 Adventurer 0 Explorer 0 Win Type - Total 0 Types 0/0/0/0/0/0/0 Lore% 26 Gallery% 31 Achievement% 25 Wizard Run 0 Options --------- ASCII 0 Keyboard 1 Movement Vi Keybinds 0 Fullscreen 1 Font 20/SmallcapsGlow Map View 50x50 Tactical HUD 1 Map Filters NONE Filters NONE Steam 1 RUN: 077f9508-f2d9-4b28-b618-9145182dc657